[Event "*** MasterClass Titled Tuesday Blitz"]
[Site "Chess.com"]
[Date "2017.10.03"]
[Round "9"]
[White "BillCoe"]
[Black "Laico"]
[Result "1-0"]
[WhiteElo "1984"]
[BlackElo "2121"]
[TimeControl "180+2"]
[EndTime "15:05:49 PDT"]
[Termination "BillCoe won on time"]

1. e4 {[%clk 0:03:01.9]} 1... e6 {[%clk 0:00:28.6]} 2. d4 {[%clk 0:02:59.6]}
2... d5 {[%clk 0:00:29.5]} 3. Nd2 {[%clk 0:02:59.3]} 3... Nf6 {[%clk 0:00:31]}
4. e5 {[%clk 0:03:00]} 4... Nfd7 {[%clk 0:00:32.6]} 5. Bd3 {[%clk 0:03:01.3]}
5... c5 {[%clk 0:00:34.2]} 6. c3 {[%clk 0:03:02.7]} 6... Nc6 {[%clk 0:00:35.8]}
7. Ne2 {[%clk 0:03:03.1]} 7... cxd4 {[%clk 0:00:37.2]} 8. cxd4 {[%clk 0:03:05]}
8... f6 {[%clk 0:00:38.6]} 9. exf6 {[%clk 0:03:05.1]} 9... Nxf6 {[%clk
0:00:40.5]} 10. O-O {[%clk 0:03:06.1]} 10... Bd6 {[%clk 0:00:42.1]} 11. Nf3
{[%clk 0:03:06.1]} 11... Qc7 {[%clk 0:00:43.1]} 12. Bg5 {[%clk 0:03:07.4]} 12...
O-O {[%clk 0:00:43.9]} 13. Bh4 {[%clk 0:03:08.2]} 13... Nh5 {[%clk 0:00:44.9]}
14. Bg3 {[%clk 0:03:08.4]} 14... Nxg3 {[%clk 0:00:44.3]} 15. hxg3 {[%clk
0:03:10.3]} 15... g6 {[%clk 0:00:45.3]} 16. a3 {[%clk 0:03:08.6]} 16... Qg7
{[%clk 0:00:44.6]} 17. Rc1 {[%clk 0:03:08.4]} 17... Bc7 {[%clk 0:00:44.2]} 18.
b4 {[%clk 0:03:06.7]} 18... Bb6 {[%clk 0:00:45.1]} 19. Bb5 {[%clk 0:02:51.4]}
19... Bd7 {[%clk 0:00:44.8]} 20. Qd3 {[%clk 0:02:43.8]} 20... a6 {[%clk
0:00:44.6]} 21. Bxc6 {[%clk 0:02:41.9]} 21... Bxc6 {[%clk 0:00:45.2]} 22. Qe3
{[%clk 0:02:23.9]} 22... Rae8 {[%clk 0:00:43.8]} 23. Ne5 {[%clk 0:02:21.7]}
23... Bb5 {[%clk 0:00:44.6]} 24. Rfe1 {[%clk 0:02:21.3]} 24... Rf5 {[%clk
0:00:44.9]} 25. Nf4 {[%clk 0:02:18.2]} 25... a5 {[%clk 0:00:39.2]} 26. Rcd1
{[%clk 0:01:43.8]} 26... axb4 {[%clk 0:00:39.3]} 27. axb4 {[%clk 0:01:43.7]}
27... Bc7 {[%clk 0:00:40.2]} 28. Nfd3 {[%clk 0:01:39.6]} 28... Ref8 {[%clk
0:00:38.4]} 29. f3 {[%clk 0:01:37.8]} 29... Bb6 {[%clk 0:00:37.2]} 30. Nc5
{[%clk 0:01:34.3]} 30... Re8 {[%clk 0:00:34]} 31. g4 {[%clk 0:01:34]} 31... Rff8
{[%clk 0:00:34.3]} 32. Kh1 {[%clk 0:01:31.8]} 32... Kh8 {[%clk 0:00:32.5]} 33.
Qg5 {[%clk 0:01:23.8]} 33... Bd8 {[%clk 0:00:32.3]} 34. Qe3 {[%clk 0:01:22.1]}
34... b6 {[%clk 0:00:33.3]} 35. Ncd3 {[%clk 0:01:21.2]} 35... Bc7 {[%clk
0:00:32.6]} 36. g3 {[%clk 0:01:07.3]} 36... Bd6 {[%clk 0:00:33.7]} 37. Kg2
{[%clk 0:01:07.8]} 37... Ra8 {[%clk 0:00:34.2]} 38. Rd2 {[%clk 0:01:06.4]} 38...
Rfc8 {[%clk 0:00:34.8]} 39. Nf4 {[%clk 0:00:58.8]} 39... Qf6 {[%clk 0:00:29.1]}
40. g5 {[%clk 0:00:53]} 40... Qxg5 {[%clk 0:00:23.8]} 41. Nxe6 {[%clk
0:00:52.7]} 41... Qe7 {[%clk 0:00:23.8]} 42. Nf4 {[%clk 0:00:45]} 42... Kg8
{[%clk 0:00:24]} 43. Nxd5 {[%clk 0:00:44.8]} 43... Qb7 {[%clk 0:00:22.3]} 44.
Nf6+ {[%clk 0:00:41]} 44... Kg7 {[%clk 0:00:21.9]} 45. Nfg4 {[%clk 0:00:41.8]}
45... Bxb4 {[%clk 0:00:22.4]} 46. Qh6+ {[%clk 0:00:39.7]} 46... Kg8 {[%clk
0:00:20.9]} 47. Nf6+ {[%clk 0:00:36.5]} 47... Kh8 {[%clk 0:00:21.2]} 48. Ned7
{[%clk 0:00:37.1]} 48... Qxd7 {[%clk 0:00:07.2]} 49. Nxd7 {[%clk 0:00:36.1]}
49... Bxd7 {[%clk 0:00:09.1]} 50. Re7 {[%clk 0:00:35.4]} 50... Bxe7 {[%clk
0:00:09.1]} 51. Qe3 {[%clk 0:00:31.1]} 51... Bf6 {[%clk 0:00:09.6]} 52. d5
{[%clk 0:00:31.2]} 52... Re8 {[%clk 0:00:10.1]} 53. Qf4 {[%clk 0:00:30.9]} 53...
Kg7 {[%clk 0:00:10]} 54. Qd6 {[%clk 0:00:31.1]} 54... Re7 {[%clk 0:00:09.7]} 55.
Qxb6 {[%clk 0:00:31.6]} 55... Rae8 {[%clk 0:00:10.7]} 56. Qa6 {[%clk 0:00:26.9]}
56... Rf7 {[%clk 0:00:08.5]} 57. d6 {[%clk 0:00:27]} 57... Bg5 {[%clk
0:00:08.3]} 58. f4 {[%clk 0:00:26.4]} 58... Bf6 {[%clk 0:00:07.9]} 59. Qd3
{[%clk 0:00:22.2]} 59... Rc8 {[%clk 0:00:08.6]} 60. Qb3 {[%clk 0:00:19.7]} 60...
Rc6 {[%clk 0:00:08.8]} 61. Qb7 {[%clk 0:00:19.2]} 61... Bc3 {[%clk 0:00:08]} 62.
Rc2 {[%clk 0:00:15.6]} 62... Kf6 {[%clk 0:00:02]} 63. Qb3 {[%clk 0:00:13.6]} 1-0

[Event "*** MasterClass Titled Tuesday Blitz"]
[Site "Chess.com"]
[Date "2017.10.03"]
[Round "9"]
[White "Noukii"]
[Black "VladimirBelous"]
[Result "0-1"]
[WhiteElo "2690"]
[BlackElo "2658"]
[TimeControl "180+2"]
[EndTime "15:06:09 PDT"]
[Termination "VladimirBelous won by resignation"]

1. d4 {[%clk 0:03:01.9]} 1... Nf6 {[%clk 0:03:00.4]} 2. Nf3 {[%clk 0:03:02.6]}
2... g6 {[%clk 0:03:00.9]} 3. Bg5 {[%clk 0:03:03.1]} 3... Bg7 {[%clk 0:03:01.3]}
4. c3 {[%clk 0:03:03.3]} 4... d6 {[%clk 0:03:00.9]} 5. Nbd2 {[%clk 0:03:04.6]}
5... O-O {[%clk 0:03:02.4]} 6. e4 {[%clk 0:03:06]} 6... h6 {[%clk 0:02:59.5]} 7.
Bh4 {[%clk 0:03:06.1]} 7... Nh5 {[%clk 0:03:00.4]} 8. Be2 {[%clk 0:03:01.1]}
8... Nc6 {[%clk 0:02:54.3]} 9. O-O {[%clk 0:03:01.7]} 9... g5 {[%clk 0:02:44.8]}
10. Bg3 {[%clk 0:02:53.1]} 10... Nxg3 {[%clk 0:02:45.6]} 11. hxg3 {[%clk
0:02:54]} 11... e5 {[%clk 0:02:45.7]} 12. dxe5 {[%clk 0:02:47.3]} 12... dxe5
{[%clk 0:02:41]} 13. Nc4 {[%clk 0:02:46]} 13... Be6 {[%clk 0:02:39.6]} 14. Ne3
{[%clk 0:02:46.5]} 14... Qxd1 {[%clk 0:02:37.2]} 15. Rfxd1 {[%clk 0:02:45]}
15... Rad8 {[%clk 0:02:27.3]} 16. Bc4 {[%clk 0:02:40.6]} 16... Bxc4 {[%clk
0:02:09.4]} 17. Nxc4 {[%clk 0:02:41.4]} 17... f6 {[%clk 0:02:09.5]} 18. g4
{[%clk 0:02:39]} 18... Kf7 {[%clk 0:02:09.5]} 19. Kf1 {[%clk 0:02:39.9]} 19...
Rfe8 {[%clk 0:02:09.4]} 20. Ke2 {[%clk 0:02:40.7]} 20... Bf8 {[%clk 0:02:10.9]}
21. Ne3 {[%clk 0:02:36.2]} 21... Ne7 {[%clk 0:02:08.7]} 22. Rxd8 {[%clk
0:02:28.4]} 22... Rxd8 {[%clk 0:02:10.6]} 23. Rd1 {[%clk 0:02:29.7]} 23... Rc8
{[%clk 0:02:11.9]} 24. Nh2 {[%clk 0:02:28.3]} 24... Ke6 {[%clk 0:02:11.7]} 25.
Nhf1 {[%clk 0:02:28.7]} 25... Ng6 {[%clk 0:02:03.6]} 26. Nf5 {[%clk 0:02:26.4]}
26... h5 {[%clk 0:01:56]} 27. gxh5 {[%clk 0:02:27.4]} 27... Nf4+ {[%clk
0:01:57.2]} 28. Kf3 {[%clk 0:02:29]} 28... Nxh5 {[%clk 0:01:58.7]} 29. g3 {[%clk
0:02:27.4]} 29... Ng7 {[%clk 0:01:57]} 30. N1e3 {[%clk 0:02:28.9]} 30... Ne8
{[%clk 0:01:56.5]} 31. Kg4 {[%clk 0:02:26.1]} 31... Bc5 {[%clk 0:01:55.8]} 32.
Rh1 {[%clk 0:01:30.1]} 32... Bxe3 {[%clk 0:01:22.2]} 33. fxe3 {[%clk 0:01:15.1]}
33... Nd6 {[%clk 0:01:21.1]} 34. Nxd6 {[%clk 0:01:14.8]} 34... cxd6 {[%clk
0:01:21.4]} 35. Rh7 {[%clk 0:01:14.8]} 35... Rc4 {[%clk 0:01:20.1]} 36. Kf3
{[%clk 0:01:10.6]} 36... g4+ {[%clk 0:01:20.7]} 37. Kxg4 {[%clk 0:01:08.6]}
37... Rxe4+ {[%clk 0:01:20.5]} 38. Kf3 {[%clk 0:01:10]} 38... Ra4 {[%clk
0:01:22.1]} 39. a3 {[%clk 0:01:11.2]} 39... b6 {[%clk 0:01:23.1]} 40. e4 {[%clk
0:01:09.2]} 40... d5 {[%clk 0:01:18.9]} 41. exd5+ {[%clk 0:01:10.4]} 41... Kxd5
{[%clk 0:01:20.7]} 42. Rf7 {[%clk 0:01:08.3]} 42... Ke6 {[%clk 0:01:21.5]} 43.
Rc7 {[%clk 0:01:09.1]} 43... Kf5 {[%clk 0:01:22.3]} 44. Rg7 {[%clk 0:01:08.1]}
44... b5 {[%clk 0:01:20.4]} 45. Rb7 {[%clk 0:01:07.1]} 45... a6 {[%clk
0:01:20.5]} 46. Rb6 {[%clk 0:01:08.6]} 46... Kg5 {[%clk 0:01:19.3]} 47. Re6
{[%clk 0:01:08.1]} 47... Kg6 {[%clk 0:01:16.3]} 48. Rb6 {[%clk 0:01:05.3]} 48...
Kf5 {[%clk 0:01:17.4]} 49. Rc6 {[%clk 0:01:05.6]} 49... e4+ {[%clk 0:01:15.3]}
50. Ke3 {[%clk 0:01:06.5]} 50... Kg5 {[%clk 0:01:16.2]} 51. Rc8 {[%clk
0:01:04.4]} 51... Kg4 {[%clk 0:01:15.3]} 52. Rg8+ {[%clk 0:01:05.3]} 52... Kf5
{[%clk 0:01:16.4]} 53. g4+ {[%clk 0:01:05.3]} 53... Ke5 {[%clk 0:01:17.6]} 54.
Re8+ {[%clk 0:01:05.7]} 54... Kd5 {[%clk 0:01:18.7]} 55. Rd8+ {[%clk 0:01:03.6]}
55... Ke5 {[%clk 0:01:19.8]} 56. Rc8 {[%clk 0:01:05]} 56... Kd5 {[%clk
0:01:14.8]} 57. Kf4 {[%clk 0:01:00.3]} 57... e3+ {[%clk 0:01:07.9]} 58. Kxe3
{[%clk 0:01:01.6]} 58... Rxg4 {[%clk 0:01:08.7]} 59. Ra8 {[%clk 0:01:03]} 59...
Rg2 {[%clk 0:01:07.7]} 60. b4 {[%clk 0:01:02.4]} 60... Rg3+ {[%clk 0:01:07.4]}
61. Kd2 {[%clk 0:01:02.3]} 61... Kc4 {[%clk 0:01:07.9]} 62. Rxa6 {[%clk
0:01:03.3]} 62... Rd3+ {[%clk 0:01:06]} 63. Ke2 {[%clk 0:01:04.4]} 63... Rxc3
{[%clk 0:01:07.3]} 64. Rxf6 {[%clk 0:01:03.7]} 64... Rxa3 {[%clk 0:01:07.2]} 65.
Rf4+ {[%clk 0:01:05]} 65... Kc3 {[%clk 0:01:08.4]} 66. Rh4 {[%clk 0:01:01.6]}
66... Ra2+ {[%clk 0:01:08.9]} 67. Kd1 {[%clk 0:01:02.6]} 67... Ra1+ {[%clk
0:01:10.2]} 68. Ke2 {[%clk 0:01:04]} 68... Rb1 {[%clk 0:01:10]} 69. Rh3+ {[%clk
0:01:04.6]} 69... Kc2 {[%clk 0:01:07.6]} 70. Rh4 {[%clk 0:01:04.2]} 70... Rb3
{[%clk 0:01:08.4]} 71. Rg4 {[%clk 0:01:04.6]} 71... Kc3 {[%clk 0:01:08.6]} 72.
Rg1 {[%clk 0:00:46.2]} 72... Rb2+ {[%clk 0:01:06.5]} 73. Ke3 {[%clk 0:00:47.1]}
73... Kxb4 {[%clk 0:01:00.8]} 74. Kd3 {[%clk 0:00:48.2]} 74... Kb3 {[%clk
0:01:00.8]} 75. Rg3 {[%clk 0:00:47.5]} 75... b4 {[%clk 0:00:55.8]} 76. Rh3
{[%clk 0:00:48.3]} 76... Rb1 {[%clk 0:00:53.9]} 77. Kd4+ {[%clk 0:00:48.4]}
77... Ka2 {[%clk 0:00:52.7]} 78. Kc4 {[%clk 0:00:44.3]} 78... b3 {[%clk
0:00:53.4]} 79. Kb4 {[%clk 0:00:43.3]} 79... Rg1 {[%clk 0:00:48.4]} 80. Rh8
{[%clk 0:00:34]} 80... b2 {[%clk 0:00:35.4]} 81. Ra8+ {[%clk 0:00:33.1]} 81...
Kb1 {[%clk 0:00:36.9]} 82. Kc3 {[%clk 0:00:34.2]} 82... Rg3+ {[%clk 0:00:34.6]}
83. Kd2 {[%clk 0:00:35]} 83... Rg2+ {[%clk 0:00:34.8]} 84. Kd1 {[%clk
0:00:36.4]} 84... Rg7 {[%clk 0:00:35.4]} 85. Rd8 {[%clk 0:00:34.4]} 85... Ra7
{[%clk 0:00:35.8]} 0-1

[Event "*** MasterClass Titled Tuesday Blitz"]
[Site "Chess.com"]
[Date "2017.10.03"]
[Round "9"]
[White "GrigorGrigorov"]
[Black "Hrant_ChessMood"]
[Result "1-0"]
[WhiteElo "2742"]
[BlackElo "2739"]
[TimeControl "180+2"]
[EndTime "15:06:16 PDT"]
[Termination "GrigorGrigorov won by resignation"]

1. d4 {[%clk 0:03:01.9]} 1... d5 {[%clk 0:02:59.3]} 2. c4 {[%clk 0:03:02.4]}
2... e6 {[%clk 0:03:00.5]} 3. Nc3 {[%clk 0:03:02.1]} 3... Nf6 {[%clk 0:03:01.8]}
4. cxd5 {[%clk 0:03:02.9]} 4... Nxd5 {[%clk 0:03:03.7]} 5. Nf3 {[%clk 0:03:03]}
5... Nxc3 {[%clk 0:03:00.6]} 6. bxc3 {[%clk 0:03:03.3]} 6... c5 {[%clk
0:03:02.5]} 7. e4 {[%clk 0:02:49.9]} 7... cxd4 {[%clk 0:03:03.5]} 8. cxd4 {[%clk
0:02:50.5]} 8... Bb4+ {[%clk 0:03:05.1]} 9. Bd2 {[%clk 0:02:52]} 9... Bxd2+
{[%clk 0:03:06.7]} 10. Qxd2 {[%clk 0:02:53.9]} 10... O-O {[%clk 0:03:08.2]} 11.
Bc4 {[%clk 0:02:50.4]} 11... Nd7 {[%clk 0:03:09]} 12. O-O {[%clk 0:02:51]} 12...
b6 {[%clk 0:03:10.6]} 13. Rfe1 {[%clk 0:02:47.2]} 13... Bb7 {[%clk 0:03:11.3]}
14. Rad1 {[%clk 0:02:47.5]} 14... Rc8 {[%clk 0:03:11.2]} 15. Bb3 {[%clk
0:02:47.7]} 15... Re8 {[%clk 0:03:11.9]} 16. h4 {[%clk 0:02:42.1]} 16... h6
{[%clk 0:03:12.1]} 17. Qf4 {[%clk 0:02:39.8]} 17... Qc7 {[%clk 0:03:13.2]} 18.
Qe3 {[%clk 0:02:32.8]} 18... Nf6 {[%clk 0:03:08.6]} 19. Rc1 {[%clk 0:01:58.1]}
19... Qb8 {[%clk 0:02:44.4]} 20. Bc2 {[%clk 0:01:56.4]} 20... Rc7 {[%clk
0:01:48.9]} 21. Bb1 {[%clk 0:01:54.2]} 21... Rec8 {[%clk 0:01:49]} 22. Rxc7
{[%clk 0:01:37]} 22... Qxc7 {[%clk 0:01:50.9]} 23. Ne5 {[%clk 0:01:27.9]} 23...
Nd7 {[%clk 0:01:36.8]} 24. Nd3 {[%clk 0:01:18.8]} 24... Qd6 {[%clk 0:01:33.2]}
25. Nf4 {[%clk 0:01:07.6]} 25... e5 {[%clk 0:01:18.7]} 26. dxe5 {[%clk
0:01:07.8]} 26... Nxe5 {[%clk 0:01:20.6]} 27. Qg3 {[%clk 0:01:07.5]} 27... Qe7
{[%clk 0:00:48.2]} 28. Nh5 {[%clk 0:00:57]} 28... g6 {[%clk 0:00:48.4]} 29. Nf4
{[%clk 0:00:55.3]} 29... Kg7 {[%clk 0:00:43.7]} 30. Rd1 {[%clk 0:00:50.9]} 30...
Kh7 {[%clk 0:00:31.6]} 31. h5 {[%clk 0:00:46.3]} 31... g5 {[%clk 0:00:26.4]} 32.
Nd5 {[%clk 0:00:47]} 32... Qe6 {[%clk 0:00:14.3]} 33. Qa3 {[%clk 0:00:45.2]}
33... Kh8 {[%clk 0:00:05.7]} 34. Qxa7 {[%clk 0:00:39.7]} 34... Bxd5 {[%clk
0:00:06.6]} 35. exd5 {[%clk 0:00:40.2]} 35... Qd6 {[%clk 0:00:08.2]} 36. Qa4
{[%clk 0:00:31.2]} 36... Kg7 {[%clk 0:00:09.4]} 37. Qe4 {[%clk 0:00:31.4]} 37...
Rh8 {[%clk 0:00:10.2]} 38. Re1 {[%clk 0:00:29.9]} 38... Nd7 {[%clk 0:00:11.2]}
39. Rc1 {[%clk 0:00:21.4]} 39... Nf6 {[%clk 0:00:12]} 40. Qd4 {[%clk 0:00:20.8]}
40... Qxd5 {[%clk 0:00:12.1]} 41. Qxb6 {[%clk 0:00:21.1]} 41... Qd2 {[%clk
0:00:09.5]} 42. Qc5 {[%clk 0:00:18.6]} 42... Rb8 {[%clk 0:00:07.6]} 43. Qc2
{[%clk 0:00:17.1]} 43... Qd4 {[%clk 0:00:05.5]} 44. Rd1 {[%clk 0:00:17.1]} 44...
Qe5 {[%clk 0:00:06.1]} 45. Qf5 {[%clk 0:00:15.4]} 45... Qc3 {[%clk 0:00:03.5]}
46. g3 {[%clk 0:00:11.6]} 46... Rb2 {[%clk 0:00:04.4]} 47. Qd3 {[%clk 0:00:11]}
47... Qc5 {[%clk 0:00:04.6]} 48. Qe3 {[%clk 0:00:08.4]} 48... Qxe3 {[%clk
0:00:04.2]} 49. fxe3 {[%clk 0:00:09.3]} 49... Ng4 {[%clk 0:00:06.1]} 50. a4
{[%clk 0:00:08.3]} 50... Ne5 {[%clk 0:00:05.3]} 51. Bf5 {[%clk 0:00:07.2]} 51...
Nf3+ {[%clk 0:00:05.6]} 52. Kf1 {[%clk 0:00:06.2]} 52... Nh2+ {[%clk 0:00:07.2]}
53. Kg1 {[%clk 0:00:07.5]} 53... Nf3+ {[%clk 0:00:09.1]} 54. Kf1 {[%clk
0:00:08.8]} 54... Ra2 {[%clk 0:00:11]} 55. Bd7 {[%clk 0:00:08.7]} 55... Nh2+
{[%clk 0:00:11.4]} 56. Kg1 {[%clk 0:00:09.7]} 56... Nf3+ {[%clk 0:00:13.3]} 57.
Kf1 {[%clk 0:00:10.9]} 57... Nd2+ {[%clk 0:00:08.9]} 58. Ke2 {[%clk 0:00:09.9]}
58... Ne4+ {[%clk 0:00:05.3]} 59. Kf1 {[%clk 0:00:06.7]} 59... Nxg3+ {[%clk
0:00:05.9]} 60. Kg1 {[%clk 0:00:08.3]} 60... Nxh5 {[%clk 0:00:04.3]} 61. Bc6
{[%clk 0:00:07.7]} 61... Nf6 {[%clk 0:00:05.1]} 62. Rd8 {[%clk 0:00:05.1]} 62...
Ng4 {[%clk 0:00:05.5]} 63. Ra8 {[%clk 0:00:05.3]} 63... Ne5 {[%clk 0:00:04.9]}
64. Bd5 {[%clk 0:00:04.9]} 64... g4 {[%clk 0:00:05.9]} 65. Bxa2 {[%clk 0:00:05]}
65... h5 {[%clk 0:00:02.3]} 66. Bd5 {[%clk 0:00:05.5]} 66... h4 {[%clk
0:00:04.2]} 67. a5 {[%clk 0:00:06.8]} 67... h3 {[%clk 0:00:05.4]} 68. Kh2 {[%clk
0:00:07.1]} 68... f5 {[%clk 0:00:05.2]} 69. Kg3 {[%clk 0:00:08]} 69... Nf3
{[%clk 0:00:03.7]} 70. Bxf3 {[%clk 0:00:08.4]} 70... gxf3 {[%clk 0:00:05.6]} 71.
Kxf3 {[%clk 0:00:09.7]} 1-0

[Event "*** MasterClass Titled Tuesday Blitz"]
[Site "Chess.com"]
[Date "2017.10.03"]
[Round "9"]
[White "Alexander_Moskalenko"]
[Black "GeorgMeier"]
[Result "1-0"]
[WhiteElo "2651"]
[BlackElo "2768"]
[TimeControl "180+2"]
[EndTime "15:06:41 PDT"]
[Termination "Alexander_Moskalenko won by checkmate"]

1. d4 {[%clk 0:03:00.6]} 1... e6 {[%clk 0:03:01]} 2. c4 {[%clk 0:02:56.8]} 2...
Nf6 {[%clk 0:03:02.1]} 3. Nf3 {[%clk 0:02:56.6]} 3... d5 {[%clk 0:03:02.9]} 4.
Nc3 {[%clk 0:02:58.1]} 4... dxc4 {[%clk 0:03:01.4]} 5. e3 {[%clk 0:02:57.1]}
5... a6 {[%clk 0:03:02.2]} 6. Bxc4 {[%clk 0:02:57.9]} 6... b5 {[%clk 0:03:03.7]}
7. Be2 {[%clk 0:02:55.3]} 7... Bb7 {[%clk 0:03:04.8]} 8. O-O {[%clk 0:02:54.5]}
8... Nbd7 {[%clk 0:03:06.3]} 9. b3 {[%clk 0:02:55.2]} 9... c5 {[%clk 0:03:06.6]}
10. Bb2 {[%clk 0:02:54.4]} 10... Rc8 {[%clk 0:03:06.7]} 11. a4 {[%clk
0:02:54.3]} 11... b4 {[%clk 0:03:07.1]} 12. Nb1 {[%clk 0:02:55.3]} 12... Be7
{[%clk 0:03:03.3]} 13. Nbd2 {[%clk 0:02:56.2]} 13... O-O {[%clk 0:03:04.6]} 14.
Nc4 {[%clk 0:02:57.1]} 14... Qc7 {[%clk 0:03:05.7]} 15. Rc1 {[%clk 0:02:56.3]}
15... Rfd8 {[%clk 0:03:06.9]} 16. Qd2 {[%clk 0:02:45]} 16... Ne4 {[%clk
0:02:29.1]} 17. Qc2 {[%clk 0:02:44.9]} 17... Bd5 {[%clk 0:02:21.3]} 18. Rfd1
{[%clk 0:02:36.7]} 18... Qb7 {[%clk 0:02:20]} 19. Ne1 {[%clk 0:02:37.2]} 19...
cxd4 {[%clk 0:02:10.7]} 20. Bxd4 {[%clk 0:02:37.2]} 20... Bf6 {[%clk 0:02:04]}
21. Qb2 {[%clk 0:02:01.5]} 21... Bxc4 {[%clk 0:01:57.1]} 22. Bxf6 {[%clk
0:01:37]} 22... Ndxf6 {[%clk 0:01:49.9]} 23. Bxc4 {[%clk 0:01:34.6]} 23... a5
{[%clk 0:01:41.4]} 24. f3 {[%clk 0:01:17]} 24... Nc3 {[%clk 0:01:41.9]} 25.
Rxd8+ {[%clk 0:01:17.7]} 25... Rxd8 {[%clk 0:01:43.8]} 26. Nd3 {[%clk
0:01:11.6]} 26... Qc7 {[%clk 0:01:27.7]} 27. Re1 {[%clk 0:01:03]} 27... Nd7
{[%clk 0:01:23.9]} 28. Qf2 {[%clk 0:00:55.5]} 28... Nb6 {[%clk 0:01:10.9]} 29.
Nb2 {[%clk 0:00:52.4]} 29... Qd6 {[%clk 0:01:10.9]} 30. Qh4 {[%clk 0:00:34.7]}
30... h6 {[%clk 0:01:01.8]} 31. Bf1 {[%clk 0:00:33.2]} 31... Qd5 {[%clk
0:00:50.8]} 32. Nc4 {[%clk 0:00:31.4]} 32... Nxc4 {[%clk 0:00:50.1]} 33. Bxc4
{[%clk 0:00:33.3]} 33... Qg5 {[%clk 0:00:49.2]} 34. Qf2 {[%clk 0:00:30.7]} 34...
Rd6 {[%clk 0:00:47]} 35. h4 {[%clk 0:00:25.1]} 35... Qd8 {[%clk 0:00:47.5]} 36.
Qg3 {[%clk 0:00:22.6]} 36... Rd2 {[%clk 0:00:46.8]} 37. Kh2 {[%clk 0:00:23.8]}
37... Kf8 {[%clk 0:00:45.6]} 38. Qf4 {[%clk 0:00:22.7]} 38... Qd6 {[%clk
0:00:37.2]} 39. Kg3 {[%clk 0:00:18.2]} 39... Ke7 {[%clk 0:00:34.2]} 40. h5
{[%clk 0:00:17.7]} 40... Qc5 {[%clk 0:00:17.7]} 41. Qh4+ {[%clk 0:00:14.1]}
41... Kf8 {[%clk 0:00:17.7]} 42. Kh2 {[%clk 0:00:09.1]} 42... Qe5+ {[%clk
0:00:15.7]} 43. Kh1 {[%clk 0:00:07.7]} 43... Qg5 {[%clk 0:00:16]} 44. Qh2 {[%clk
0:00:07.4]} 44... Qd8 {[%clk 0:00:11.8]} 45. Qf4 {[%clk 0:00:07.2]} 45... Kg8
{[%clk 0:00:11.4]} 46. Kh2 {[%clk 0:00:08.2]} 46... Qd6 {[%clk 0:00:12]} 47. Kg3
{[%clk 0:00:09.7]} 47... Qd8 {[%clk 0:00:13]} 48. Kh3 {[%clk 0:00:10.6]} 48...
Rb2 {[%clk 0:00:11.1]} 49. e4 {[%clk 0:00:11.2]} 49... Qd2 {[%clk 0:00:10.5]}
50. Qg3 {[%clk 0:00:09.6]} 50... Qd8 {[%clk 0:00:10]} 51. Rg1 {[%clk 0:00:10.2]}
51... Rd2 {[%clk 0:00:11.1]} 52. Qe5 {[%clk 0:00:11]} 52... Kf8 {[%clk
0:00:10.1]} 53. Qc5+ {[%clk 0:00:10.8]} 53... Kg8 {[%clk 0:00:11]} 54. Rf1
{[%clk 0:00:12.1]} 54... Rc2 {[%clk 0:00:11.7]} 55. Qe5 {[%clk 0:00:12.5]} 55...
Qd2 {[%clk 0:00:11.4]} 56. Qb8+ {[%clk 0:00:12.4]} 56... Kh7 {[%clk 0:00:12.3]}
57. Qg3 {[%clk 0:00:14.3]} 57... Qg5 {[%clk 0:00:13.1]} 58. Qxg5 {[%clk
0:00:12.7]} 58... hxg5 {[%clk 0:00:15]} 59. f4 {[%clk 0:00:05.9]} 59... gxf4
{[%clk 0:00:11.5]} 60. Rxf4 {[%clk 0:00:06.6]} 60... Kg8 {[%clk 0:00:13]} 61.
Bd3 {[%clk 0:00:05.9]} 61... Rb2 {[%clk 0:00:12.5]} 62. Bc4 {[%clk 0:00:07]}
62... Rd2 {[%clk 0:00:12.8]} 63. e5 {[%clk 0:00:05.9]} 63... Rd1 {[%clk
0:00:11.5]} 64. g4 {[%clk 0:00:05.6]} 64... Re1 {[%clk 0:00:10.5]} 65. Rd4
{[%clk 0:00:05.6]} 65... Rxe5 {[%clk 0:00:11.4]} 66. Rd8+ {[%clk 0:00:06.7]}
66... Kh7 {[%clk 0:00:12.8]} 67. Kh4 {[%clk 0:00:08.5]} 67... g5+ {[%clk
0:00:13.2]} 68. Kg3 {[%clk 0:00:07.7]} 68... Kg7 {[%clk 0:00:13.9]} 69. Rd7
{[%clk 0:00:08.6]} 69... Ne4+ {[%clk 0:00:14.4]} 70. Kf3 {[%clk 0:00:08.6]}
70... Nc3 {[%clk 0:00:13]} 71. Ra7 {[%clk 0:00:09.6]} 71... Ne4 {[%clk
0:00:10.4]} 72. Bd3 {[%clk 0:00:07.3]} 72... Nf6 {[%clk 0:00:09.9]} 73. Bg6
{[%clk 0:00:07.3]} 73... Nd5 {[%clk 0:00:05.4]} 74. Rxf7+ {[%clk 0:00:08.6]}
74... Kg8 {[%clk 0:00:06.8]} 75. Ra7 {[%clk 0:00:09.5]} 75... Re3+ {[%clk
0:00:07.8]} 76. Kf2 {[%clk 0:00:10.9]} 76... Rxb3 {[%clk 0:00:06]} 77. h6 {[%clk
0:00:12.3]} 77... Rh3 {[%clk 0:00:06.4]} 78. Ra8# {[%clk 0:00:12.8]} 1-0